Body,Body Name,Date,TransNo,Amount � (Excl VAT),Supplier name,Description,Expense Area,Expense Type,Expense Code,
http://opendatacommunities.org/id/london-borough-council/sutton,London Borough of Sutton,18/03/2021,1311300,9.77 , LIDL GB LONDON,EASTER TREATS,Health and Wellbeing Directorate,Education Equipment,F009,
http://opendatacommunities.org/id/london-borough-council/sutton,London Borough of Sutton,08/03/2021,1311300,9.17 , POUNDLAND LTD 1211,GARDEN EQUIPMENT,Health and Wellbeing Directorate,Education Equipment,F009,
http://opendatacommunities.org/id/london-borough-council/sutton,London Borough of Sutton,23/03/2021,1311300,8.32 , TWINKL LIMITED,TWINKL SUBSCRIPTION,Health and Wellbeing Directorate,Education Equipment,F009,
http://opendatacommunities.org/id/london-borough-council/sutton,London Borough of Sutton,19/03/2021,1311300,8.30 , MORDEN GARDEN CENTRE,GARDEN PLANTS,Health and Wellbeing Directorate,Education Equipment,F009,
http://opendatacommunities.org/id/london-borough-council/sutton,London Borough of Sutton,07/03/2021,1311300,29.94 , TESCO STORE 3235,GROCERIES,Health and Wellbeing Directorate,Provisions - General,F150,
http://opendatacommunities.org/id/london-borough-council/sutton,London Borough of Sutton,27/02/2021,1311300,17.73 , TESCO STORE 3235,GROCERIES,Health and Wellbeing Directorate,Provisions - General,F150,
http://opendatacommunities.org/id/london-borough-council/sutton,London Borough of Sutton,22/03/2021,1311300,34.65 , SAINSBURYS 2331,GROCERIES,Health and Wellbeing Directorate,Refreshments,F155,
http://opendatacommunities.org/id/london-borough-council/sutton,London Borough of Sutton,13/03/2021,1311300,29.49 , TESCO STORE 3235,GROCERIES,Health and Wellbeing Directorate,Refreshments,F155,
http://opendatacommunities.org/id/london-borough-council/sutton,London Borough of Sutton,18/03/2021,1311300,(6.25), AMZNMKTPLACE AMAZON.CO,SPLIT - RUSTINS GPBGW250 QD SMALL JOB BUCKINGHAM GREEN 250ML (50%),Peoples Services Directorate,Client Care/Assistance,H301,
http://opendatacommunities.org/id/london-borough-council/sutton,London Borough of Sutton,18/03/2021,1311300,(6.25), AMZNMKTPLACE AMAZON.CO,SPLIT - RUSTINS GPPOW250 250 ML QD SMALL JOB PAINT - POPPY (50%),Peoples Services Directorate,Client Care/Assistance,H301,
http://opendatacommunities.org/id/london-borough-council/sutton,London Borough of Sutton,17/03/2021,1311300,4.80 , AMAZON.CO.UK MU52A04L4,SPLIT - RUSTINS GPBUW250 QD SMALL JOB BUTTERCUP 250ML (61.3%),Peoples Services Directorate,Client Care/Assistance,H301,
http://opendatacommunities.org/id/london-borough-council/sutton,London Borough of Sutton,17/03/2021,1311300,4.16 , AMAZON.CO.UK MU52A04L4,BALANCING ENTRY AMOUNT (38.7%),Peoples Services Directorate,Client Care/Assistance,H301,
http://opendatacommunities.org/id/london-borough-council/sutton,London Borough of Sutton,17/03/2021,1311300,24.97 , SCREWFIX DIRECT,SCREWFIX COLLECTION,Peoples Services Directorate,Client Care/Assistance,H301,
http://opendatacommunities.org/id/london-borough-council/sutton,London Borough of Sutton,18/03/2021,1311300,6.25 , AMZNMKTPLACE AMAZON.CO,SPLIT - RUSTINS GPBGW250 QD SMALL JOB BUCKINGHAM GREEN 250ML (50%),Peoples Services Directorate,Client Care/Assistance,H301,
http://opendatacommunities.org/id/london-borough-council/sutton,London Borough of Sutton,18/03/2021,1311300,6.25 , AMZNMKTPLACE AMAZON.CO,SPLIT - RUSTINS GPPOW250 250 ML QD SMALL JOB PAINT - POPPY (50%),Peoples Services Directorate,Client Care/Assistance,H301,
http://opendatacommunities.org/id/london-borough-council/sutton,London Borough of Sutton,11/03/2021,1311300,62.50 , PAYPAL  CRUSEBEREAV,BEREAVEMENT FIRST AIDER TRAINING - BE,Peoples Services Directorate,Training - Course Fees,A520,
http://opendatacommunities.org/id/london-borough-council/sutton,London Borough of Sutton,18/03/2021,1311300,21.77 , THE RANGE,PRODUCTS AND CLEANING PRODUCTS FOR STAFF KITCHEN,Peoples Services Directorate,Other-Materials,F115,
http://opendatacommunities.org/id/london-borough-council/sutton,London Borough of Sutton,01/03/2021,1311300,700.00 , IKEA LTD SHOP ONLINE,10 X CRAFT WORKSTATIONS FOR FLORISTRY CLASSES,Peoples Services Directorate,Education Equipment,F009,
http://opendatacommunities.org/id/london-borough-council/sutton,London Borough of Sutton,22/03/2021,1311300,416.67 , FACEBK  C54PUY27A2,FACEBOOK SUMMER AD 220321 500,Peoples Services Directorate,Advertising/Publicity (non Staff),F240,
http://opendatacommunities.org/id/london-borough-council/sutton,London Borough of Sutton,18/03/2021,1311300,366.66 , FACEBK Y7YNAY66A2,FACEBOOK AD SUMMER TERM 180321 439.99 (OF 500),Peoples Services Directorate,Advertising/Publicity (non Staff),F240,
http://opendatacommunities.org/id/london-borough-council/sutton,London Borough of Sutton,28/02/2021,1311300,50.00 , FACEBK K4JBMY67A2,FACEBOOK AD SUMMER AD PART 1 280221 60,Peoples Services Directorate,Advertising/Publicity (non Staff),F240,
http://opendatacommunities.org/id/london-borough-council/sutton,London Borough of Sutton,28/02/2021,1311300,96.74 , MAILCHIMP,MAILCHIMP 280221 116.09,Peoples Services Directorate,Subscriptions - General,F450,
http://opendatacommunities.org/id/london-borough-council/sutton,London Borough of Sutton,15/03/2021,1311300,316.63 , CURRYS ONLINE,STAFF KITCHEN EQUIPMENT - LN,Peoples Services Directorate,General Works,D400,
http://opendatacommunities.org/id/london-borough-council/sutton,London Borough of Sutton,08/03/2021,1311300,208.32 , CURRYS ONLINE,WASHING MACHINE FOR SUTTON CENTRE,Peoples Services Directorate,Other Equipment - Purchase,F015,
http://opendatacommunities.org/id/london-borough-council/sutton,London Borough of Sutton,23/03/2021,1311300,7.55 , TESCO STORE 2675,COOKERY INGREDIENTS,Peoples Services Directorate,Education Equipment,F009,
http://opendatacommunities.org/id/london-borough-council/sutton,London Borough of Sutton,16/03/2021,1311300,6.95 , TESCO STORE 2675,COOKERY INGREDIENTS,Peoples Services Directorate,Education Equipment,F009,
http://opendatacommunities.org/id/london-borough-council/sutton,London Borough of Sutton,09/03/2021,1311300,4.47 , TESCO STORE 2675,COOKERY INGREDIENTS,Peoples Services Directorate,Education Equipment,F009,
http://opendatacommunities.org/id/london-borough-council/sutton,London Borough of Sutton,02/03/2021,1311300,6.56 , TESCO STORE 2675,COOKERY INGREDIENTS,Peoples Services Directorate,Education Equipment,F009,
http://opendatacommunities.org/id/london-borough-council/sutton,London Borough of Sutton,25/03/2021,1311300,19.79 , LIDL GB LONDON,DR,Peoples Services Directorate,Personal Requisites,F106,
http://opendatacommunities.org/id/london-borough-council/sutton,London Borough of Sutton,19/03/2021,1311300,28.13 , SAINSBURYS 2006,JD,Peoples Services Directorate,Personal Requisites,F106,
http://opendatacommunities.org/id/london-borough-council/sutton,London Borough of Sutton,19/03/2021,1311300,45.83 , ARGOS LTD,JB,Peoples Services Directorate,Personal Requisites,F106,
http://opendatacommunities.org/id/london-borough-council/sutton,London Borough of Sutton,19/03/2021,1311300,50.00 , WALLINGTON COMPUTERS,MC,Peoples Services Directorate,Personal Requisites,F106,
http://opendatacommunities.org/id/london-borough-council/sutton,London Borough of Sutton,17/03/2021,1311300,34.96 , T&M B2C ECOMM,GR,Peoples Services Directorate,Personal Requisites,F106,
http://opendatacommunities.org/id/london-borough-council/sutton,London Borough of Sutton,17/03/2021,1311300,35.96 , WWW.SUTTONS-SEEDS.,GR,Peoples Services Directorate,Personal Requisites,F106,
http://opendatacommunities.org/id/london-borough-council/sutton,London Borough of Sutton,12/03/2021,1311300,9.99 , AMAZON.CO.UK MM35G0UJ4,RA,Peoples Services Directorate,Personal Requisites,F106,
http://opendatacommunities.org/id/london-borough-council/sutton,London Borough of Sutton,11/03/2021,1311300,4.70 , COX PIPPIN CAFE,RA ACTIVITY,Peoples Services Directorate,Personal Requisites,F106,
http://opendatacommunities.org/id/london-borough-council/sutton,London Borough of Sutton,02/03/2021,1311300,1.63 , MCDONALDS 1311,RM ACTIVITY,Peoples Services Directorate,Personal Requisites,F106,
http://opendatacommunities.org/id/london-borough-council/sutton,London Borough of Sutton,02/03/2021,1311300,23.90 , SAINSBURYS LOC (4308),MC,Peoples Services Directorate,Personal Requisites,F106,
http://opendatacommunities.org/id/london-borough-council/sutton,London Borough of Sutton,02/03/2021,1311300,40.00 , WWW.UTILITA.CO.UK,MC UTILITIES,Peoples Services Directorate,Personal Requisites,F106,
http://opendatacommunities.org/id/london-borough-council/sutton,London Borough of Sutton,01/03/2021,1311300,18.49 , WATERSTONES.COM,LD RECOVERY BOOK,Peoples Services Directorate,Personal Requisites,F106,
http://opendatacommunities.org/id/london-borough-council/sutton,London Borough of Sutton,23/03/2021,1311300,199.00 , LONDON DOMESTIC APPLIA,personal items requested by LBS social workers,Peoples Services Directorate,Personal Requisites,F106,
http://opendatacommunities.org/id/london-borough-council/sutton,London Borough of Sutton,23/03/2021,1311300,412.93 , ARGOS LTD,personal items requested by LBS social workers,Peoples Services Directorate,Personal Requisites,F106,
http://opendatacommunities.org/id/london-borough-council/sutton,London Borough of Sutton,23/03/2021,1311300,35.00 , FOOD BOXES,personal items requested by LBS social workers,Peoples Services Directorate,Personal Requisites,F106,
http://opendatacommunities.org/id/london-borough-council/sutton,London Borough of Sutton,10/03/2021,1311300,266.66 , ARGOS LTD,ARGOS,Peoples Services Directorate,Personal Requisites,F106,
http://opendatacommunities.org/id/london-borough-council/sutton,London Borough of Sutton,10/03/2021,1311300,23.29 , ASDA GEORGE COM LEEDS,ASDA,Peoples Services Directorate,Personal Requisites,F106,
http://opendatacommunities.org/id/london-borough-council/sutton,London Borough of Sutton,17/03/2021,1311300,159.90 , ZOOM.US 888-799-9666,ZOOM LCT,Peoples Services Directorate,Subscriptions - General,F450,
http://opendatacommunities.org/id/london-borough-council/sutton,London Borough of Sutton,09/03/2021,1311300,"1,095.94 ", ARGOS LTD,ARGOS ITEMS FOR LCT,Peoples Services Directorate,Temporary Protection - Homeless Persons,H300,
http://opendatacommunities.org/id/london-borough-council/sutton,London Borough of Sutton,17/03/2021,1311300,89.99 , EE LIMITED,EE - NEW PHONE,Peoples Services Directorate,Client Care/Assistance,H301,
http://opendatacommunities.org/id/london-borough-council/sutton,London Borough of Sutton,17/03/2021,1311300,35.00 , AMAZON.CO.UK MU0RC4474,"SPLIT - RUSSELL HOBBS LINCOLN KETTLE AND 2-SLICE TOASTER 21830 - POLISHED STAINLESS STEEL SILVER, PACK OF 2 (100%)",Peoples Services Directorate,Client Care/Assistance,H301,
http://opendatacommunities.org/id/london-borough-council/sutton,London Borough of Sutton,18/03/2021,1311300,345.00 , WWW.COURIEREXPERT.CO.U,COURIEREXPERT,Peoples Services Directorate,Client Care/Assistance,H301,
http://opendatacommunities.org/id/london-borough-council/sutton,London Borough of Sutton,18/03/2021,1311300,140.83 , IKEA LTD SHOP ONLINE,IKEA,Peoples Services Directorate,Client Care/Assistance,H301,
http://opendatacommunities.org/id/london-borough-council/sutton,London Borough of Sutton,10/03/2021,1311300,299.99 , ARGOS LTD,DONAGHYBROS OVEN.,Peoples Services Directorate,Client Care/Assistance,H301,
http://opendatacommunities.org/id/london-borough-council/sutton,London Borough of Sutton,09/03/2021,1311300,28.94 , ARGOS LTD,ARGOS ITEMS FOR LCT,Peoples Services Directorate,Client Care/Assistance,H301,
http://opendatacommunities.org/id/london-borough-council/sutton,London Borough of Sutton,09/03/2021,1311300,132.98 , ARGOS LTD,ARGOS ITEMS FOR LCT,Peoples Services Directorate,Client Care/Assistance,H301,
http://opendatacommunities.org/id/london-borough-council/sutton,London Borough of Sutton,20/03/2021,1311300,149.17 , AMAZON.CO.UK MU44J33N4,DR,Peoples Services Directorate,Set Up Costs - Children Leaving Care,H336,
http://opendatacommunities.org/id/london-borough-council/sutton,London Borough of Sutton,02/03/2021,1311300,260.88 , APPLIANCEDIRECT CO,SETTING UP FOR CARE LEAVER,Peoples Services Directorate,Set Up Costs - Children Leaving Care,H336,
http://opendatacommunities.org/id/london-borough-council/sutton,London Borough of Sutton,27/02/2021,1311300,643.33 , SUTTON APPLIANCES,SETTING UP FOR A CARE LEAVER,Peoples Services Directorate,Set Up Costs - Children Leaving Care,H336,
http://opendatacommunities.org/id/london-borough-council/sutton,London Borough of Sutton,11/03/2021,1311300,165.83 , PREMIER INN,LONDON DOMESTIC APPLIANCES,Peoples Services Directorate,Set Up Costs - Children Leaving Care,H336,
http://opendatacommunities.org/id/london-borough-council/sutton,London Borough of Sutton,25/03/2021,1311300,69.99 , FOOT LOCKER EUROPE.COM,personal items requested by LBS social workers,Peoples Services Directorate,Personal Requisites,F106,
http://opendatacommunities.org/id/london-borough-council/sutton,London Borough of Sutton,24/03/2021,1311300,7.24 , AMZNMKTPLACE,"SPLIT - TREENEWBID PRIVACY WINDOW FILM, 3D RAINBOW PATTERN, NO ADHESIVES VACUUM ADSORPTION ANTI-UV PRIVACY GLASS DECORATIVE FILM,11.8""X78.7""/30X200CM",Peoples Services Directorate,Personal Requisites,F106,
http://opendatacommunities.org/id/london-borough-council/sutton,London Borough of Sutton,24/03/2021,1311300,11.66 , AMZNMKTPLACE,SPLIT - ESONMUS COLLAPSABLE 3-SECTION LAUNDRY BAG FOLDABLE LAUNDRY HAMPER DURABLE OXFORD FABRIC LAUNDRY BASKET CLOTHES SORTER PORTABLE MULTIFUNCTION STORAGE B,Peoples Services Directorate,Personal Requisites,F106,
http://opendatacommunities.org/id/london-borough-council/sutton,London Borough of Sutton,24/03/2021,1311300,17.41 , AMZNMKTPLACE,"SPLIT - WHITGO 6 TIER SHOE RACK, METAL NARROW STACKABLE SHOE STORAGE RACKS ORGANISER TOWER STAND SHELVES HOLD UP TO 12 PAIRS OF SHOES FOR LIVING ROOM ENTRYWAY HALLWAY AND CLOAKROOM",Peoples Services Directorate,Personal Requisites,F106,
http://opendatacommunities.org/id/london-borough-council/sutton,London Borough of Sutton,24/03/2021,1311300,4.15 , AMZNMKTPLACE,BALANCING ENTRY AMOUNT,Peoples Services Directorate,Personal Requisites,F106,
http://opendatacommunities.org/id/london-borough-council/sutton,London Borough of Sutton,24/03/2021,1311300,12.46 , AMZNMKTPLACE,SPLIT - PYREX SET OF 3 COOK & STORE MIXING BOWL SET WITH LIDS 05L/1L/2L LITRE,Peoples Services Directorate,Personal Requisites,F106,
http://opendatacommunities.org/id/london-borough-council/sutton,London Borough of Sutton,24/03/2021,1311300,10.82 , AMZNMKTPLACE,SPLIT - COOKSPACE � CHROME STYLISH FRUIT BOWL BASKET WITH BANANA HANGER HOOK,Peoples Services Directorate,Personal Requisites,F106,
http://opendatacommunities.org/id/london-borough-council/sutton,London Borough of Sutton,24/03/2021,1311300,8.32 , AMZNMKTPLACE,"SPLIT - ADDIS 518385 ECO 100% RECYCLED PLASTIC CUTLERY UTENSIL DRAWER ORGANISER TRAY, LIGHT GREY, SINGLE",Peoples Services Directorate,Personal Requisites,F106,
http://opendatacommunities.org/id/london-borough-council/sutton,London Borough of Sutton,24/03/2021,1311300,3.33 , AMZNMKTPLACE,"SPLIT - JOIE RAINBOW REUSABLE SILICONE STRAWS WITH CLEANING BRUSH, SET OF 6",Peoples Services Directorate,Personal Requisites,F106,
http://opendatacommunities.org/id/london-borough-council/sutton,London Borough of Sutton,24/03/2021,1311300,7.91 , AMZNMKTPLACE,SPLIT - 750 PIECES FOOD STORAGE LABELS ADHESIVE REMOVABLE FOOD LABELS FOOD STORAGE FREEZER STICKER FOR HOME RESTAURANT FOOD DATE SAFE SUPPLIES,Peoples Services Directorate,Personal Requisites,F106,
http://opendatacommunities.org/id/london-borough-council/sutton,London Borough of Sutton,24/03/2021,1311300,4.99 , AMZNMKTPLACE,SPLIT - PETTY CASH BOOK: INCOME AND EXPENSES LOG BOOK - BUSINESS ACCOUNTS PETTY CASH BOOK - TRACK AND RECORD INCOME AND EXPENSES,Peoples Services Directorate,Personal Requisites,F106,
http://opendatacommunities.org/id/london-borough-council/sutton,London Borough of Sutton,24/03/2021,1311300,3.06 , AMZNMKTPLACE,BALANCING ENTRY AMOUNT,Peoples Services Directorate,Personal Requisites,F106,
http://opendatacommunities.org/id/london-borough-council/sutton,London Borough of Sutton,24/03/2021,1311300,31.62 , AMZNMKTPLACE,"SPLIT - MORPHY RICHARDS 403010 JUG BLENDER WITH ICE CRUSHER BLADES INSPIRE KITCHEN CONFIDENCE, PLASTIC, 600 W, 1.5 LITERS, GREY",Peoples Services Directorate,Personal Requisites,F106,
http://opendatacommunities.org/id/london-borough-council/sutton,London Borough of Sutton,05/03/2021,1311300,16.67 , PARENTPAY E-COM R,LUNCH MONEY THORNTON ROAD.,Peoples Services Directorate,Personal Requisites,F106,
http://opendatacommunities.org/id/london-borough-council/sutton,London Borough of Sutton,05/03/2021,1311300,25.79 , WWW.ASOS.COM,ASOS,Peoples Services Directorate,Personal Requisites,F106,
http://opendatacommunities.org/id/london-borough-council/sutton,London Borough of Sutton,05/03/2021,1311300,34.08 , WWW.ASOS.COM,ASOS THORNTON ROAD,Peoples Services Directorate,Personal Requisites,F106,
http://opendatacommunities.org/id/london-borough-council/sutton,London Borough of Sutton,09/03/2021,1311300,6.24 , LAKELAND.LIMITED, LAKELAND THORNTON ROAD,Peoples Services Directorate,Personal Requisites,F106,
http://opendatacommunities.org/id/london-borough-council/sutton,London Borough of Sutton,08/03/2021,1311300,62.03 , CARTRIDGESHOP.CO.UK, INK THORNTON ROAD,Peoples Services Directorate,Personal Requisites,F106,
http://opendatacommunities.org/id/london-borough-council/sutton,London Borough of Sutton,08/03/2021,1311300,76.72 , ASDA GROCERIES ONLINE,ASDA THORNTON ROAD,Peoples Services Directorate,Personal Requisites,F106,
http://opendatacommunities.org/id/london-borough-council/sutton,London Borough of Sutton,15/03/2021,1311300,12.49 , JD SPORTS INTERNET, JD THORNTON RD,Peoples Services Directorate,Personal Requisites,F106,
http://opendatacommunities.org/id/london-borough-council/sutton,London Borough of Sutton,15/03/2021,1311300,9.15 , FEMME LUXE,FEMME LUXE THORNTON RD,Peoples Services Directorate,Personal Requisites,F106,
http://opendatacommunities.org/id/london-borough-council/sutton,London Borough of Sutton,15/03/2021,1311300,14.23 , HM.COM,HM,Peoples Services Directorate,Personal Requisites,F106,
http://opendatacommunities.org/id/london-borough-council/sutton,London Borough of Sutton,14/03/2021,1311300,20.29 , AMZNMKTPLACE,SPLIT - EBL 8 SLOTS AA AAA BATTERY CHARGER AND 4 AA AND 4 AAA RECHARGEABLE BATTERIES - INDIVIDUAL BATTERY CHARGER WITH 5V 2A FAST CHARGING FUNCTION WITH RECHARGEABLE BATTERY AA AAA SETS (100%),Peoples Services Directorate,Personal Requisites,F106,
http://opendatacommunities.org/id/london-borough-council/sutton,London Borough of Sutton,12/03/2021,1311300,20.00 , PARENTPAY E-COM R, PAARENTPAU,Peoples Services Directorate,Personal Requisites,F106,
http://opendatacommunities.org/id/london-borough-council/sutton,London Borough of Sutton,12/03/2021,1311300,19.16 , WWW.ASOS.COM,ASOS THORNTON ROAD,Peoples Services Directorate,Personal Requisites,F106,
http://opendatacommunities.org/id/london-borough-council/sutton,London Borough of Sutton,27/02/2021,1311300,1.07 , BUDGENS,TAKEAWAY,Peoples Services Directorate,Personal Requisites,F106,
http://opendatacommunities.org/id/london-borough-council/sutton,London Borough of Sutton,26/02/2021,1311300,6.82 , SUBWAY68205,HP - LUNCH,Peoples Services Directorate,Personal Requisites,F106,
http://opendatacommunities.org/id/london-borough-council/sutton,London Borough of Sutton,26/02/2021,1311300,3.75 , TESCO STORES 6664,SUPPLIES,Peoples Services Directorate,Personal Requisites,F106,
http://opendatacommunities.org/id/london-borough-council/sutton,London Borough of Sutton,11/03/2021,1311300,5.00 , ASDA STORES 7134,SUPPLIES,Peoples Services Directorate,Personal Requisites,F106,
http://opendatacommunities.org/id/london-borough-council/sutton,London Borough of Sutton,01/03/2021,1311300,36.47 , ASDA STORES,WEEKLY SHOP,Peoples Services Directorate,Personal Requisites,F106,
http://opendatacommunities.org/id/london-borough-council/sutton,London Borough of Sutton,01/03/2021,1311300,91.61 , ASDA GROCERIES ONLINE,WEEKLY SHOP,Peoples Services Directorate,Personal Requisites,F106,
http://opendatacommunities.org/id/london-borough-council/sutton,London Borough of Sutton,28/02/2021,1311300,3.49 , FAVORITE CHICKEN AND R,TAKEAWAY,Peoples Services Directorate,Personal Requisites,F106,
http://opendatacommunities.org/id/london-borough-council/sutton,London Borough of Sutton,27/02/2021,1311300,1.66 , PPOINT_ LONDIS,SUPPLIES,Peoples Services Directorate,Personal Requisites,F106,
http://opendatacommunities.org/id/london-borough-council/sutton,London Borough of Sutton,24/03/2021,1311300,1.09 , AMZNMKTPLACE,BALANCING ENTRY AMOUNT,Peoples Services Directorate,Personal Requisites,F106,
http://opendatacommunities.org/id/london-borough-council/sutton,London Borough of Sutton,23/03/2021,1311300,249.99 , AMZNMKTPLACE,SPLIT - DIVAN BEDS DOUBLE - GREY LINEN SET WITH 4 DRAWERS FREE DIAMANTE CUBED HEADBOARD AND ORTHOPEDIC SPRING MATTRESS,Peoples Services Directorate,Personal Requisites,F106,
http://opendatacommunities.org/id/london-borough-council/sutton,London Borough of Sutton,23/03/2021,1311300,13.27 , AMZNMKTPLACE AMAZON.CO,"SPLIT - 2 ROLLS 1000 PIECES DISSOLVABLE FOOD LABELS FOOD PREP CANNING LABELS REMOVABLE FOOD STICKERS FOR HOME OR RESTAURANT CANNING FOOD CONTAINER FOOD ROTATION, RED AND BLUE (28.59%)",Peoples Services Directorate,Personal Requisites,F106,
http://opendatacommunities.org/id/london-borough-council/sutton,London Borough of Sutton,23/03/2021,1311300,7.27 , AMZNMKTPLACE AMAZON.CO,"SPLIT - ADDIS PREMIUM ANTI-SLIP SOFT BASE DRAWER CUTLERY ORGANISER TRAY, 6 COMPARTMENT, WHITE & GREEN, WHITE GREEN, 6 SECTIONS (15.66%)",Peoples Services Directorate,Personal Requisites,F106,
http://opendatacommunities.org/id/london-borough-council/sutton,London Borough of Sutton,23/03/2021,1311300,21.73 , AMZNMKTPLACE AMAZON.CO,SPLIT - UNIVERSAL KNIFE GUARD BLADE PROTECTOR - 3 SIZES - 7 PIECE SET -TUTTI FRUTTI (46.81%),Peoples Services Directorate,Personal Requisites,F106,
http://opendatacommunities.org/id/london-borough-council/sutton,London Borough of Sutton,23/03/2021,1311300,4.15 , AMZNMKTPLACE AMAZON.CO,BALANCING ENTRY AMOUNT (8.94%),Peoples Services Directorate,Personal Requisites,F106,
http://opendatacommunities.org/id/london-borough-council/sutton,London Borough of Sutton,22/03/2021,1311300,85.03 , ASDA GROCERIES ONLINE,ASDA,Peoples Services Directorate,Personal Requisites,F106,
http://opendatacommunities.org/id/london-borough-council/sutton,London Borough of Sutton,22/03/2021,1311300,(0.66), ASDA GROCERIES ONLINE,ASDA REFUND,Peoples Services Directorate,Personal Requisites,F106,
http://opendatacommunities.org/id/london-borough-council/sutton,London Borough of Sutton,19/03/2021,1311300,16.67 , PARENTPAY E-COM R,PAARENTPAU,Peoples Services Directorate,Personal Requisites,F106,
http://opendatacommunities.org/id/london-borough-council/sutton,London Borough of Sutton,16/03/2021,1311300,54.99 , AMZNMKTPLACE,SPLIT - BLIVENER SOFT TOUCH AREA RUG BEDROOM ANTI-SKID YOGA CARPET SHAGGY RUGS FLUFFY MOTLEY TIE-DYE CARPETS DARK GREY 160 X 200 CM (100%),Peoples Services Directorate,Personal Requisites,F106,
http://opendatacommunities.org/id/london-borough-council/sutton,London Borough of Sutton,16/03/2021,1311300,92.92 , ASDA GROCERIES ONLINE,ASDA THORNTON RD,Peoples Services Directorate,Personal Requisites,F106,
http://opendatacommunities.org/id/london-borough-council/sutton,London Borough of Sutton,16/03/2021,1311300,(20.83), WWW.ASOS.COM,ASOS,Peoples Services Directorate,Personal Requisites,F106,
http://opendatacommunities.org/id/london-borough-council/sutton,London Borough of Sutton,16/03/2021,1311300,0.01 , ASDA GROCERIES ONLINE,ASDA,Peoples Services Directorate,C.C.A Travel & Subsistance,H212,
http://opendatacommunities.org/id/london-borough-council/sutton,London Borough of Sutton,08/03/2021,1311300,(3.15), ASDA GROCERIES ONLINE,ASDA,Peoples Services Directorate,C.C.A Travel & Subsistance,H212,
http://opendatacommunities.org/id/london-borough-council/sutton,London Borough of Sutton,15/03/2021,1311300,(5.41), FEMME LUXE,FEMMELUXE,Peoples Services Directorate,C.C.A Travel & Subsistance,H212,
http://opendatacommunities.org/id/london-borough-council/sutton,London Borough of Sutton,18/03/2021,1311300,8.73 , FEMME LUXE,FEMMELUXE,Peoples Services Directorate,C.C.A Food & Clothing,H213,
http://opendatacommunities.org/id/london-borough-council/sutton,London Borough of Sutton,17/03/2021,1311300,398.50 , PREMIER INN,PREMIER INN BOOKING,Peoples Services Directorate,Accommodation - Bed and Breakfast,H202,
http://opendatacommunities.org/id/london-borough-council/sutton,London Borough of Sutton,03/03/2021,1311300,196.00 , PREMIER INN,PREMIER INN BOOKING,Peoples Services Directorate,Accommodation - Bed and Breakfast,H202,
http://opendatacommunities.org/id/london-borough-council/sutton,London Borough of Sutton,03/03/2021,1311300,401.00 , PREMIER INN,PREMIER INN BOOKING,Peoples Services Directorate,Accommodation - Bed and Breakfast,H202,
http://opendatacommunities.org/id/london-borough-council/sutton,London Borough of Sutton,17/03/2021,1311300,185.00 , PREMIER INN,PREMIER INN BOOKING,Peoples Services Directorate,Accommodation - Bed and Breakfast,H202,
http://opendatacommunities.org/id/london-borough-council/sutton,London Borough of Sutton,04/03/2021,1311300,36.95 , SP   PIZZA PILGRIMS,36.95 0311 F106 9999 PIZZA MAKING KITS.PDF,Peoples Services Directorate,Personal Requisites,F106,
http://opendatacommunities.org/id/london-borough-council/sutton,London Borough of Sutton,16/03/2021,1311300,79.99 , AMZNMKTPLACE,"SPLIT - REQUENA ERGONOMIC DESK CHAIR, MESH CHAIR WITH FLIP-UP ARMREST & LUMBAR SUPPORT, COMPUTER OFFICE CHAIR, ADJUSTABLE HEIGHT BOC116 (BLACK) (100%)",Peoples Services Directorate,Personal Requisites,F106,
http://opendatacommunities.org/id/london-borough-council/sutton,London Borough of Sutton,16/03/2021,1311300,(18.33), LBS REGISTRARS,REFUND BIRTH CERT,Peoples Services Directorate,Personal Requisites,F106,
http://opendatacommunities.org/id/london-borough-council/sutton,London Borough of Sutton,10/03/2021,1311300,166.66 , ARGOS LTD,ARGOS,Peoples Services Directorate,Personal Requisites,F106,
http://opendatacommunities.org/id/london-borough-council/sutton,London Borough of Sutton,10/03/2021,1311300,15.83 , ARGOS LTD,ARGOS,Peoples Services Directorate,Personal Requisites,F106,
http://opendatacommunities.org/id/london-borough-council/sutton,London Borough of Sutton,10/03/2021,1311300,(37.50), CURRYS ONLINE,CURRYS REFUND,Peoples Services Directorate,Personal Requisites,F106,
http://opendatacommunities.org/id/london-borough-council/sutton,London Borough of Sutton,10/03/2021,1311300,18.33 , LBS REGISTRARS,SUTTON BIRTH CERT,Peoples Services Directorate,Personal Requisites,F106,
http://opendatacommunities.org/id/london-borough-council/sutton,London Borough of Sutton,10/03/2021,1311300,37.50 , CURRYS ONLINE,CURRYS REFUND,Peoples Services Directorate,Personal Requisites,F106,
http://opendatacommunities.org/id/london-borough-council/sutton,London Borough of Sutton,09/03/2021,1311300,"1,190.40 ", ALPHA TAXIS,"1190,40 E072 0312 9999 ALPHA TAXIS.PDF",Peoples Services Directorate,Hired Peoples Transport (Children),E072,
http://opendatacommunities.org/id/london-borough-council/sutton,London Borough of Sutton,18/03/2021,1311300,62.50 , MAIDSTONE TAXI COMPANY,MAIDSTONE TAXI COMPANY,Peoples Services Directorate,Hired Peoples Transport (Children),E072,
http://opendatacommunities.org/id/london-borough-council/sutton,London Borough of Sutton,25/03/2021,1311300,145.00 , VOKES TAXIS LIMITE,personal items requested by LBS social workers,Peoples Services Directorate,Personal Requisites,F106,
http://opendatacommunities.org/id/london-borough-council/sutton,London Borough of Sutton,25/03/2021,1311300,24.60 , WWW.HOVERTRAVEL.COM,personal items requested by LBS social workers,Peoples Services Directorate,Personal Requisites,F106,
http://opendatacommunities.org/id/london-borough-council/sutton,London Borough of Sutton,25/03/2021,1311300,65.16 , FEMME LUXE,personal items requested by LBS social workers,Peoples Services Directorate,Personal Requisites,F106,
http://opendatacommunities.org/id/london-borough-council/sutton,London Borough of Sutton,25/03/2021,1311300,(33.00), LBS REGISTRARS,personal items requested by LBS social workers,Peoples Services Directorate,Personal Requisites,F106,
http://opendatacommunities.org/id/london-borough-council/sutton,London Borough of Sutton,18/03/2021,1311300,27.50 , LBS REGISTRARS,SUTTON BIRTH CERT,Peoples Services Directorate,Personal Requisites,F106,
http://opendatacommunities.org/id/london-borough-council/sutton,London Borough of Sutton,18/03/2021,1311300,27.50 , LBS REGISTRARS,BIRTH CERTT,Peoples Services Directorate,Personal Requisites,F106,
http://opendatacommunities.org/id/london-borough-council/sutton,London Borough of Sutton,05/03/2021,1311300,105.33 , VISA APPLICATION FEE,MRV APPLICATION FEE VISA APPLICATION,Peoples Services Directorate,Personal Requisites,F106,
http://opendatacommunities.org/id/london-borough-council/sutton,London Borough of Sutton,15/03/2021,1311300,9.17 , LBS REGISTRARS, BIRTH CERT .,Peoples Services Directorate,Personal Requisites,F106,
http://opendatacommunities.org/id/london-borough-council/sutton,London Borough of Sutton,10/03/2021,1311300,18.33 , LBS REGISTRARS,SUTTON BIRTH CERT,Peoples Services Directorate,Personal Requisites,F106,
http://opendatacommunities.org/id/london-borough-council/sutton,London Borough of Sutton,10/03/2021,1311300,9.17 , LBS REGISTRARS,BIRTH CERT,Peoples Services Directorate,Personal Requisites,F106,
http://opendatacommunities.org/id/london-borough-council/sutton,London Borough of Sutton,08/03/2021,1311300,294.00 , FAMILY LAW PARTNERS (U,294.00 F299 0317 9999 FAMILY LAW.PDF,Peoples Services Directorate,Fees - Other,F299,
http://opendatacommunities.org/id/london-borough-council/sutton,London Borough of Sutton,15/03/2021,1311300,95.00 , EB  DIGITAL TACTICS TO,DIGITAL MARKETING TRAINING COURSE,Peoples Services Directorate,Training - Course Fees,A520,
http://opendatacommunities.org/id/london-borough-council/sutton,London Borough of Sutton,24/03/2021,1311300,65.85 , ZOOM.US 888-799-9666,subscription,Peoples Services Directorate,Personal Requisites,F106,
http://opendatacommunities.org/id/london-borough-council/sutton,London Borough of Sutton,01/03/2021,1311300,159.90 , ZOOM.US 888-799-9666,ZOOM REQUIRED FOR FOSTERING TEAM,Peoples Services Directorate,Personal Requisites,F106,
http://opendatacommunities.org/id/london-borough-council/sutton,London Borough of Sutton,26/02/2021,1311300,5.00 , FACEBK  JFBXLZEG32,FACEBOOK ADVERTISING (FOSTERING RECRUITMENT),Peoples Services Directorate,Advertising/Publicity (non Staff),F240,
http://opendatacommunities.org/id/london-borough-council/sutton,London Borough of Sutton,21/03/2021,1311300,17.00 , FACEBK  ZB6SDZ6H32,FACEBOOK ADVERTISING (FOSTERING RECRUITMENT),Peoples Services Directorate,Advertising/Publicity (non Staff),F240,
http://opendatacommunities.org/id/london-borough-council/sutton,London Borough of Sutton,21/03/2021,1311300,(20.40), FACEBK  PSVNMYJH32,FACEBOOK ADVERTISING (FOSTERING RECRUITMENT) THIS IS A REFUND FROM AN AD RAN IN FEB,Peoples Services Directorate,Advertising/Publicity (non Staff),F240,
http://opendatacommunities.org/id/london-borough-council/sutton,London Borough of Sutton,19/03/2021,1311300,17.00 , FACEBK  LNDLPY2H32,FACEBOOK ADVERTISING (FOSTERING RECRUITMENT),Peoples Services Directorate,Advertising/Publicity (non Staff),F240,
http://opendatacommunities.org/id/london-borough-council/sutton,London Borough of Sutton,19/03/2021,1311300,(20.40), FACEBK  SQFKXYEG32,FACEBOOK ADVERTISING (FOSTERING RECRUITMENT) THIS IS A REFUND FROM AN AD RAN IN FEBRUARY,Peoples Services Directorate,Advertising/Publicity (non Staff),F240,
http://opendatacommunities.org/id/london-borough-council/sutton,London Borough of Sutton,07/03/2021,1311300,40.00 , FACEBK  W525WYSG32,FACEBOOK ADVERTISING (FOSTERING RECRUITMENT),Peoples Services Directorate,Advertising/Publicity (non Staff),F240,
http://opendatacommunities.org/id/london-borough-council/sutton,London Borough of Sutton,10/03/2021,1311300,99.00 , WWW.PUBLICPOLICYEXCHAN,FEES,Peoples Services Directorate,General Office Expenses,F235,
http://opendatacommunities.org/id/london-borough-council/sutton,London Borough of Sutton,01/03/2021,1311300,117.73 , GOOGLE  ADS8517410550,DA VALENTINES CAMPAIGN,Peoples Services Directorate,Advertising/Publicity (non Staff),F240,
http://opendatacommunities.org/id/london-borough-council/sutton,London Borough of Sutton,23/03/2021,1311300,50.00 , FACEBK LHBRS2XAL2,SPLIT - CHILD EXPLOITATION WEEK ADS (28.28%),Peoples Services Directorate,Advertising/Publicity (non Staff),F240,
http://opendatacommunities.org/id/london-borough-council/sutton,London Borough of Sutton,05/03/2021,1311300,20.00 , OYSTER BUS AUTOLOAD,OYSTER CARD AUTO TOP-UP,Peoples Services Directorate,Travelling and Subsistence Allowances,A530,
http://opendatacommunities.org/id/london-borough-council/sutton,London Borough of Sutton,15/03/2021,1311300,13.75 , HIGHSTREETVOUCHERS,LOVE 2 SHOP.,Peoples Services Directorate,Client Care/Assistance,H301,
http://opendatacommunities.org/id/london-borough-council/sutton,London Borough of Sutton,13/03/2021,1311300,11.99 , ZOOM.US 888-799-9666,ZOOM SUBSCRIPTION FOR CHILDREN IN CARE COUNCIL,Peoples Services Directorate,LAC - Education,F269,
http://opendatacommunities.org/id/london-borough-council/sutton,London Borough of Sutton,26/02/2021,1311300,150.00 , AMAZON.CO.UK MM70K6NB4,SPLIT - AMAZON LOGO SQUID - AMAZON.CO.UK EGIFT VOUCHER (75%),Peoples Services Directorate,Personal Requisites,F106,
http://opendatacommunities.org/id/london-borough-council/sutton,London Borough of Sutton,26/02/2021,1311300,50.00 , AMAZON.CO.UK MM70K6NB4,SPLIT - AMAZON LOGO SQUID - AMAZON.CO.UK EGIFT VOUCHER (25%),Peoples Services Directorate,Personal Requisites,F106,
http://opendatacommunities.org/id/london-borough-council/sutton,London Borough of Sutton,10/03/2021,1311300,18.33 , LBS REGISTRARS,BIRTH CERT SUTTON,Peoples Services Directorate,Personal Requisites,F106,
http://opendatacommunities.org/id/london-borough-council/sutton,London Borough of Sutton,27/02/2021,1311300,20.00 , OYSTER BUS AUTOLOAD,OYSTER CARD AUTO TOP-UP,Peoples Services Directorate,Travelling and Subsistence Allowances,A530,
http://opendatacommunities.org/id/london-borough-council/sutton,London Borough of Sutton,25/03/2021,1311300,25.00 , AMAZON.CO.UK MU2K13XH4,SPLIT - AMAZON LOGO SQUID - AMAZON.CO.UK EGIFT VOUCHER (100%),Peoples Services Directorate,LAC - Education,F269,
http://opendatacommunities.org/id/london-borough-council/sutton,London Borough of Sutton,23/03/2021,1311300,192.23 , AMAZON.CO.UK MU1RA51R4,"SPLIT - JUMPER LAPTOP 13.3 INCH WITH MICROSOFT OFFICE 365 FHD COMPUTER 4GB 64GB WINDOWS 10 , USB 3.0, DUAL BAND WIFI, SUPPORT 128GB MICRO SD AND 1TB SSD EXPANSION EZBOOK X3 464OFFICE GREY-4GB (98.23%)",Peoples Services Directorate,LAC - Education,F269,
http://opendatacommunities.org/id/london-borough-council/sutton,London Borough of Sutton,23/03/2021,1311300,3.47 , AMAZON.CO.UK MU1RA51R4,BALANCING ENTRY AMOUNT (1.77%),Peoples Services Directorate,LAC - Education,F269,
http://opendatacommunities.org/id/london-borough-council/sutton,London Borough of Sutton,22/03/2021,1311300,9.40 , AMAZON.CO.UK MU3790EM4,SPLIT - TIGRINYA-ENGLISH/ ENGLISH-TIGRINYA DICTIONARY & PHRASEBOOK (HIPPOCRENE DICTIONARY & PHRASEBOOK) (70.2%),Peoples Services Directorate,LAC - Education,F269,
http://opendatacommunities.org/id/london-borough-council/sutton,London Borough of Sutton,22/03/2021,1311300,3.99 , AMAZON.CO.UK MU3790EM4,BALANCING ENTRY AMOUNT (29.8%),Peoples Services Directorate,LAC - Education,F269,
http://opendatacommunities.org/id/london-borough-council/sutton,London Borough of Sutton,21/03/2021,1311300,18.82 , AMAZON.CO.UK MU72G3JX4,"SPLIT - A THERAPEUTIC TREASURE DECK OF GROUNDING, SOOTHING, COPING AND REGULATING CARDS (THERAPEUTIC TREASURES COLLECTION) (100%)",Peoples Services Directorate,LAC - Education,F269,
http://opendatacommunities.org/id/london-borough-council/sutton,London Borough of Sutton,17/03/2021,1311300,18.51 , AMAZON.CO.UK MU82Q5454,SPLIT - LONGMAN PHOTO DICTIONARY (100%),Peoples Services Directorate,LAC - Education,F269,
http://opendatacommunities.org/id/london-borough-council/sutton,London Borough of Sutton,15/03/2021,1311300,7.15 , AMZNMKTPLACE AMAZON.CO,SPLIT - A5 ASSORTED COLOURS RECORD CARDS 10MM LINED WIDE FEIN LINES PACK OF 200 PIECES PRINTED ON BOTH SIDES = 400 PAGES! - BY PARTY DECOR (67.35%),Peoples Services Directorate,LAC - Education,F269,
http://opendatacommunities.org/id/london-borough-council/sutton,London Borough of Sutton,15/03/2021,1311300,3.47 , AMZNMKTPLACE AMAZON.CO,BALANCING ENTRY AMOUNT (32.65%),Peoples Services Directorate,LAC - Education,F269,
http://opendatacommunities.org/id/london-borough-council/sutton,London Borough of Sutton,04/03/2021,1311300,99.00 , ESSENTIAL THERAPY,TRAUMA AND ATTACHMENT STAFF TRAINING,Peoples Services Directorate,LAC - Education,F269,
http://opendatacommunities.org/id/london-borough-council/sutton,London Borough of Sutton,01/03/2021,1311300,11.59 , AMAZON.CO.UK MM71P5044,SPLIT - ENGLISH FOR EVERYONE ENGLISH GRAMMAR GUIDE PRACTICE BOOK: ENGLISH LANGUAGE GRAMMAR EXERCISES (100%),Peoples Services Directorate,LAC - Education,F269,
http://opendatacommunities.org/id/london-borough-council/sutton,London Borough of Sutton,17/03/2021,1311300,80.00 , EVENT  JMN82M2SZ45,NATIONAL WALKING SUMMIT CONFERENCE ON THE 18TH MARCH 2021 FOR CHRIS SMITH,"Environment, Housing & Regeneration Directorate",Conferences - Fees,A525,
http://opendatacommunities.org/id/london-borough-council/sutton,London Borough of Sutton,17/03/2021,1311300,80.00 , EVENT  NFNZR7JMDYZ,NATIONAL WALKING SUMMIT CONFERENCE ON THE 18TH MARCH 2021 FOR HILARY GANDER,"Environment, Housing & Regeneration Directorate",Conferences - Fees,A525,
http://opendatacommunities.org/id/london-borough-council/sutton,London Borough of Sutton,17/03/2021,1311300,80.00 , EVENT  YGNLWMBWYJB,NATIONAL WALKING SUMMIT CONFERENCE ON THE 18TH MARCH 2021 FOR MATTHEW HILL,"Environment, Housing & Regeneration Directorate",Conferences - Fees,A525,
http://opendatacommunities.org/id/london-borough-council/sutton,London Borough of Sutton,17/03/2021,1311300,80.00 , EVENT  LRN3C7B47NK,NATIONAL WALKING SUMMIT CONFERENCE ON THE 18TH MARCH 2021 FOR ALEX CONSTANTINIDES,"Environment, Housing & Regeneration Directorate",Conferences - Fees,A525,
http://opendatacommunities.org/id/london-borough-council/sutton,London Borough of Sutton,25/03/2021,1311300,1.67 , FACEBK  7ZUXP2PWG2,SOCIAL MEDIA POSTS,Health and Wellbeing Directorate,Advertising/Publicity (non Staff),F240,
http://opendatacommunities.org/id/london-borough-council/sutton,London Borough of Sutton,24/03/2021,1311300,1.25 , FACEBK  EW43U4FXG2,SOCIAL MEDIA POSTS,Health and Wellbeing Directorate,Advertising/Publicity (non Staff),F240,
http://opendatacommunities.org/id/london-borough-council/sutton,London Borough of Sutton,24/03/2021,1311300,2.50 , FACEBK  MV3EHZ2K72,SOCIAL MEDIA POSTS,Health and Wellbeing Directorate,Advertising/Publicity (non Staff),F240,
http://opendatacommunities.org/id/london-borough-council/sutton,London Borough of Sutton,24/03/2021,1311300,1.25 , FACEBK  LU3EHZ2K72,SOCIAL MEDIA POSTS,Health and Wellbeing Directorate,Advertising/Publicity (non Staff),F240,
http://opendatacommunities.org/id/london-borough-council/sutton,London Borough of Sutton,23/03/2021,1311300,1.25 , FACEBK  DCJ7737XG2,SOCIAL MEDIA POSTS,Health and Wellbeing Directorate,Advertising/Publicity (non Staff),F240,
http://opendatacommunities.org/id/london-borough-council/sutton,London Borough of Sutton,22/03/2021,1311300,1.25 , FACEBK  9AZGR2TWG2,SOCIAL MEDIA POSTS,Health and Wellbeing Directorate,Advertising/Publicity (non Staff),F240,
http://opendatacommunities.org/id/london-borough-council/sutton,London Borough of Sutton,19/03/2021,1311300,1.45 , FACEBK  2PZXH2TJE2,SOCIAL MEDIA POSTS,Health and Wellbeing Directorate,Advertising/Publicity (non Staff),F240,
http://opendatacommunities.org/id/london-borough-council/sutton,London Borough of Sutton,16/03/2021,1311300,(5.00), FACEBK  TYUJPXWJ72,SOCIAL MEDIA POSTS,Health and Wellbeing Directorate,Advertising/Publicity (non Staff),F240,
http://opendatacommunities.org/id/london-borough-council/sutton,London Borough of Sutton,16/03/2021,1311300,(1.50), FACEBK  VZEJWXEK72,SOCIAL MEDIA POSTS,Health and Wellbeing Directorate,Advertising/Publicity (non Staff),F240,
http://opendatacommunities.org/id/london-borough-council/sutton,London Borough of Sutton,16/03/2021,1311300,(3.00), FACEBK  ZGK32YJJ72,SOCIAL MEDIA POSTS,Health and Wellbeing Directorate,Advertising/Publicity (non Staff),F240,
http://opendatacommunities.org/id/london-borough-council/sutton,London Borough of Sutton,15/03/2021,1311300,4.29 , FACEBK R5USA2PJE2,SOCIAL MEDIA POSTS,Health and Wellbeing Directorate,Advertising/Publicity (non Staff),F240,
http://opendatacommunities.org/id/london-borough-council/sutton,London Borough of Sutton,27/02/2021,1311300,2.50 , FACEBK L3X732BJE2,FACEBOOK SOCIAL MEDIA,Health and Wellbeing Directorate,Advertising/Publicity (non Staff),F240,
http://opendatacommunities.org/id/london-borough-council/sutton,London Borough of Sutton,03/03/2021,1311300,8.32 , SPOTIFY P13B66B323,MUSIC FOR CEREMONIES,Resources Directorate,Subscriptions - General,F450,
http://opendatacommunities.org/id/london-borough-council/sutton,London Borough of Sutton,15/03/2021,1311300,3.75 , ANTONIQUE DRY CLEANERS,TABLECLOTH LAUNDRY,Resources Directorate,Miscellaneous Expenses,F620,
http://opendatacommunities.org/id/london-borough-council/sutton,London Borough of Sutton,15/03/2021,1311300,6.66 , MAILCHIMP    MONTHLY,WEB HOSTING,Resources Directorate,Fees - Computer Software,F384,
http://opendatacommunities.org/id/london-borough-council/sutton,London Borough of Sutton,14/03/2021,1311300,242.34 , MAILCHIMP    MONTHLY,WEB HOSTING,Resources Directorate,Fees - Computer Software,F384,
http://opendatacommunities.org/id/london-borough-council/sutton,London Borough of Sutton,02/03/2021,1311300,11.48 , MINICABIT,TRAVEL NEEDED TO COMPLETE ESSENTIAL WORK,Resources Directorate,Travelling and Subsistence Allowances,A530,
http://opendatacommunities.org/id/london-borough-council/sutton,London Borough of Sutton,15/03/2021,1311300,11.48 , MINICABIT,MINICAB,Resources Directorate,Travelling and Subsistence Allowances,A530,
http://opendatacommunities.org/id/london-borough-council/sutton,London Borough of Sutton,24/03/2021,1311300,"2,000.00 ", CS MORRISONS GIFT CARD,personal items requested by LBS social workers,Resources Directorate,Personal Requisites,F106,
http://opendatacommunities.org/id/london-borough-council/sutton,London Borough of Sutton,23/03/2021,1311300,16.67 , AMZNMKTPLACE,BALANCING ENTRY AMOUNT,Resources Directorate,Personal Requisites,F106,
http://opendatacommunities.org/id/london-borough-council/sutton,London Borough of Sutton,03/03/2021,1311300,13.89 , AMZNMKTPLACE,"SPLIT - 2 PACK MATTE ANTI-GLARE SCREEN PROTECTOR FOR LENOVO YOGA C740 14 INCH 2020 2019 LAPTOP,WITH SURPRISE KEYBOARD COVER, HELP FOR YOUR EYES REDUCE FATIGUE (100%)",Resources Directorate,Personal Requisites,F106,
http://opendatacommunities.org/id/london-borough-council/sutton,London Borough of Sutton,15/03/2021,1311300,13.72 , AMZNMKTPLACE AMAZON.CO,CLLR. BANDE HP305 COLOUR INK CARTRIDGE,Resources Directorate,Stationery,F220,
http://opendatacommunities.org/id/london-borough-council/sutton,London Borough of Sutton,11/03/2021,1311300,65.00 , EB  STORYTELLING ESSEN,TEAM TRAINING,Resources Directorate,Postages - General,F350,
http://opendatacommunities.org/id/london-borough-council/sutton,London Borough of Sutton,11/03/2021,1311300,190.00 , EB  DIGITAL TACTICS TO,TEAM TRAINING,Resources Directorate,Postages - General,F350,
http://opendatacommunities.org/id/london-borough-council/sutton,London Borough of Sutton,01/03/2021,1311300,85.95 , CANVA  02973-7843891,CANVA SUBSCRIPTION,Resources Directorate,Corporate Publicity,F356,
http://opendatacommunities.org/id/london-borough-council/sutton,London Borough of Sutton,01/03/2021,1311300,3.49 , CANVA  02973-7843891,TRANSLATED SERVICES,Resources Directorate,Corporate Publicity,F356,
http://opendatacommunities.org/id/london-borough-council/sutton,London Borough of Sutton,23/03/2021,1311300,30.00 , FACEBK LHBRS2XAL2,SPLIT - BUDGET CAMPAIGN ADS (16.97%),Resources Directorate,Corporate Publicity,F356,
http://opendatacommunities.org/id/london-borough-council/sutton,London Borough of Sutton,26/02/2021,1311300,126.94 , TRANSLATED.COM,TRANSLATION AND TRANSCRIPTION OF VACCINE HESITANCY VIDEOS,Resources Directorate,Corporate Publicity,F356,
http://opendatacommunities.org/id/london-borough-council/sutton,London Borough of Sutton,11/03/2021,1311300,(5.52), FLUID BRANDING LIMITED,HAND SANITISERS PURCHASE,Resources Directorate,Corporate Publicity,F356,
http://opendatacommunities.org/id/london-borough-council/sutton,London Borough of Sutton,03/03/2021,1311300,31.98 , 123 REG LTD,IOT DOMAIN RENEWAL (2 YEARS),Resources Directorate,Corporate Publicity,F356,
http://opendatacommunities.org/id/london-borough-council/sutton,London Borough of Sutton,02/03/2021,1311300,2.36 , CANVA  02973-7843891,CANVA SUBSCRIPTIONS FOR COMMS,Resources Directorate,Corporate Publicity,F356,
http://opendatacommunities.org/id/london-borough-council/sutton,London Borough of Sutton,26/03/2021,1311300,0.70 , BITLY.COM,BITLY ACCOUNT UPGRADE,Resources Directorate,Assistance to Voluntary Organisations,F471,
http://opendatacommunities.org/id/london-borough-council/sutton,London Borough of Sutton,25/03/2021,1311300,25.59 , BITLY.COM,BITLY ACCOUNT UPGRADE,Resources Directorate,Assistance to Voluntary Organisations,F471,
http://opendatacommunities.org/id/london-borough-council/sutton,London Borough of Sutton,25/03/2021,1311300,787.79 , AMZNMKTPLACE AMAZON.CO,PURCHASE OF ITEMS TO HELP TEAM MEMBERS WORK FROM HOME EFFECTIVELY,"Environment, Housing & Regeneration Directorate",Purchase of IT Equipment,F380,
http://opendatacommunities.org/id/london-borough-council/sutton,London Borough of Sutton,04/03/2021,1311300,"5,000.00 ", CS MORRISONS GIFT CARD,CL&G TEAM VOUCHERS FOR HARDSHIP PAYMENTS,Resources Directorate,Grants,F473,
http://opendatacommunities.org/id/london-borough-council/sutton,London Borough of Sutton,16/03/2021,1311300,209.99 , ARGOS LTD,CL&G,Resources Directorate,Grants,F473,
http://opendatacommunities.org/id/london-borough-council/sutton,London Borough of Sutton,16/03/2021,1311300,199.99 , ARGOS LTD,CL&G,Resources Directorate,Grants,F473,
http://opendatacommunities.org/id/london-borough-council/sutton,London Borough of Sutton,16/03/2021,1311300,286.95 , ARGOS LTD,CL&G,Resources Directorate,Grants,F473,
http://opendatacommunities.org/id/london-borough-council/sutton,London Borough of Sutton,16/03/2021,1311300,888.97 , CURRYS ONLINE,CL&G,Resources Directorate,Grants,F473,
http://opendatacommunities.org/id/london-borough-council/sutton,London Borough of Sutton,24/03/2021,1311300,173.95 , ARGOS LTD,CL&G,Resources Directorate,Grants,F473,
http://opendatacommunities.org/id/london-borough-council/sutton,London Borough of Sutton,24/03/2021,1311300,354.99 , ARGOS LTD,CL&G,Resources Directorate,Grants,F473,
http://opendatacommunities.org/id/london-borough-council/sutton,London Borough of Sutton,24/03/2021,1311300,"3,950.00 ", CS MORRISONS GIFT CARD,CL&G,Resources Directorate,Grants,F473,
http://opendatacommunities.org/id/london-borough-council/sutton,London Borough of Sutton,24/03/2021,1311300,283.95 , ARGOS LTD,CL&G,Resources Directorate,Grants,F473,
http://opendatacommunities.org/id/london-borough-council/sutton,London Borough of Sutton,24/03/2021,1311300,"4,000.00 ", CS MORRISONS GIFT CARD,CL&G,Resources Directorate,Grants,F473,
http://opendatacommunities.org/id/london-borough-council/sutton,London Borough of Sutton,23/03/2021,1311300,199.99 , ARGOS LTD,CL&G,Resources Directorate,Grants,F473,
http://opendatacommunities.org/id/london-borough-council/sutton,London Borough of Sutton,23/03/2021,1311300,229.99 , ARGOS LTD,CL&G,Resources Directorate,Grants,F473,
http://opendatacommunities.org/id/london-borough-council/sutton,London Borough of Sutton,23/03/2021,1311300,(199.99), ARGOS LTD,CL&G,Resources Directorate,Grants,F473,
http://opendatacommunities.org/id/london-borough-council/sutton,London Borough of Sutton,22/03/2021,1311300,869.98 , CURRYS ONLINE,CL&G,Resources Directorate,Grants,F473,
http://opendatacommunities.org/id/london-borough-council/sutton,London Borough of Sutton,22/03/2021,1311300,244.99 , CURRYS ONLINE,CL&G,Resources Directorate,Grants,F473,
http://opendatacommunities.org/id/london-borough-council/sutton,London Borough of Sutton,22/03/2021,1311300,666.93 , ARGOS LTD,CL&G,Resources Directorate,Grants,F473,
http://opendatacommunities.org/id/london-borough-council/sutton,London Borough of Sutton,19/03/2021,1311300,70.00 , ARGOS LTD,CL&G,Resources Directorate,Grants,F473,
http://opendatacommunities.org/id/london-borough-council/sutton,London Borough of Sutton,19/03/2021,1311300,306.95 , ARGOS LTD,CL&G,Resources Directorate,Grants,F473,
http://opendatacommunities.org/id/london-borough-council/sutton,London Borough of Sutton,18/03/2021,1311300,329.99 , CURRYS ONLINE,CL&G,Resources Directorate,Grants,F473,
http://opendatacommunities.org/id/london-borough-council/sutton,London Borough of Sutton,18/03/2021,1311300,435.00 , CURRYS ONLINE,CL&G,Resources Directorate,Grants,F473,
http://opendatacommunities.org/id/london-borough-council/sutton,London Borough of Sutton,18/03/2021,1311300,(359.99), ARGOS LTD,CL&G,Resources Directorate,Grants,F473,
http://opendatacommunities.org/id/london-borough-council/sutton,London Borough of Sutton,17/03/2021,1311300,349.00 , CURRYS ONLINE,CL&G,Resources Directorate,Grants,F473,
http://opendatacommunities.org/id/london-borough-council/sutton,London Borough of Sutton,17/03/2021,1311300,414.00 , CURRYS ONLINE,CL&G,Resources Directorate,Grants,F473,
http://opendatacommunities.org/id/london-borough-council/sutton,London Borough of Sutton,17/03/2021,1311300,199.99 , ARGOS LTD,CL&G,Resources Directorate,Grants,F473,
http://opendatacommunities.org/id/london-borough-council/sutton,London Borough of Sutton,17/03/2021,1311300,519.98 , ARGOS LTD,CL&G,Resources Directorate,Grants,F473,
http://opendatacommunities.org/id/london-borough-council/sutton,London Borough of Sutton,17/03/2021,1311300,294.00 , CURRYS ONLINE,CL&G,Resources Directorate,Grants,F473,
http://opendatacommunities.org/id/london-borough-council/sutton,London Borough of Sutton,17/03/2021,1311300,173.95 , ARGOS LTD,CL&G,Resources Directorate,Grants,F473,
http://opendatacommunities.org/id/london-borough-council/sutton,London Borough of Sutton,15/03/2021,1311300,73.95 , ARGOS LTD,CL&G,Resources Directorate,Grants,F473,
http://opendatacommunities.org/id/london-borough-council/sutton,London Borough of Sutton,15/03/2021,1311300,732.95 , ARGOS LTD,CL&G,Resources Directorate,Grants,F473,
http://opendatacommunities.org/id/london-borough-council/sutton,London Borough of Sutton,15/03/2021,1311300,923.98 , CURRYS ONLINE,CL&G,Resources Directorate,Grants,F473,
http://opendatacommunities.org/id/london-borough-council/sutton,London Borough of Sutton,15/03/2021,1311300,286.95 , ARGOS LTD,CL&G,Resources Directorate,Grants,F473,
http://opendatacommunities.org/id/london-borough-council/sutton,London Borough of Sutton,12/03/2021,1311300,209.98 , ARGOS LTD,CL&G,Resources Directorate,Grants,F473,
http://opendatacommunities.org/id/london-borough-council/sutton,London Borough of Sutton,12/03/2021,1311300,218.94 , ARGOS LTD,CL&G,Resources Directorate,Grants,F473,
http://opendatacommunities.org/id/london-borough-council/sutton,London Borough of Sutton,12/03/2021,1311300,384.00 , CURRYS ONLINE,CL&G,Resources Directorate,Grants,F473,
http://opendatacommunities.org/id/london-borough-council/sutton,London Borough of Sutton,12/03/2021,1311300,323.95 , ARGOS LTD,CL&G,Resources Directorate,Grants,F473,
http://opendatacommunities.org/id/london-borough-council/sutton,London Borough of Sutton,12/03/2021,1311300,479.00 , CURRYS ONLINE,CL&G,Resources Directorate,Grants,F473,
http://opendatacommunities.org/id/london-borough-council/sutton,London Borough of Sutton,12/03/2021,1311300,234.95 , ARGOS LTD,CL&G,Resources Directorate,Grants,F473,
http://opendatacommunities.org/id/london-borough-council/sutton,London Borough of Sutton,11/03/2021,1311300,326.95 , ARGOS LTD,CL&G,Resources Directorate,Grants,F473,
http://opendatacommunities.org/id/london-borough-council/sutton,London Borough of Sutton,24/03/2021,1311300,229.99 , ARGOS LTD,PURCHASE OF WHITE GOODS FOR CRISIS LOAN AND GRANT SCHEME,Resources Directorate,Grants,F473,
http://opendatacommunities.org/id/london-borough-council/sutton,London Borough of Sutton,24/03/2021,1311300,423.95 , ARGOS LTD,PURCHASE OF WHITE GOODS FOR CRISIS LOAN AND GRANT SCHEME,Resources Directorate,Grants,F473,
http://opendatacommunities.org/id/london-borough-council/sutton,London Borough of Sutton,10/03/2021,1311300,369.00 , CURRYS ONLINE,PURCHASE OF WHITE GOODS FOR CRISIS LOAN AND GRANT SCHEME,Resources Directorate,Grants,F473,
http://opendatacommunities.org/id/london-borough-council/sutton,London Borough of Sutton,10/03/2021,1311300,483.95 , ARGOS LTD,PURCHASE OF WHITE GOODS FOR CRISIS LOAN AND GRANT SCHEME,Resources Directorate,Grants,F473,
http://opendatacommunities.org/id/london-borough-council/sutton,London Borough of Sutton,09/03/2021,1311300,663.99 , CURRYS ONLINE,PURCHASE OF WHITE GOODS FOR CRISIS LOAN AND GRANT SCHEME,Resources Directorate,Grants,F473,
http://opendatacommunities.org/id/london-borough-council/sutton,London Borough of Sutton,09/03/2021,1311300,536.94 , ARGOS LTD,PURCHASE OF WHITE GOODS FOR CRISIS LOAN AND GRANT SCHEME,Resources Directorate,Grants,F473,
http://opendatacommunities.org/id/london-borough-council/sutton,London Borough of Sutton,08/03/2021,1311300,549.98 , ARGOS LTD,PURCHASE OF WHITE GOODS FOR CRISIS LOAN AND GRANT SCHEME,Resources Directorate,Grants,F473,
http://opendatacommunities.org/id/london-borough-council/sutton,London Borough of Sutton,08/03/2021,1311300,309.00 , CURRYS ONLINE,PURCHASE OF WHITE GOODS FOR CRISIS LOAN AND GRANT SCHEME,Resources Directorate,Grants,F473,
http://opendatacommunities.org/id/london-borough-council/sutton,London Borough of Sutton,08/03/2021,1311300,339.99 , ARGOS LTD,PURCHASE OF WHITE GOODS FOR CRISIS LOAN AND GRANT SCHEME,Resources Directorate,Grants,F473,
http://opendatacommunities.org/id/london-borough-council/sutton,London Borough of Sutton,08/03/2021,1311300,979.98 , ARGOS LTD,PURCHASE OF WHITE GOODS FOR CRISIS LOAN AND GRANT SCHEME,Resources Directorate,Grants,F473,
http://opendatacommunities.org/id/london-borough-council/sutton,London Borough of Sutton,08/03/2021,1311300,678.99 , CURRYS ONLINE,PURCHASE OF WHITE GOODS FOR CRISIS LOAN AND GRANT SCHEME,Resources Directorate,Grants,F473,
http://opendatacommunities.org/id/london-borough-council/sutton,London Borough of Sutton,08/03/2021,1311300,549.98 , ARGOS LTD,PURCHASE OF WHITE GOODS FOR CRISIS LOAN AND GRANT SCHEME,Resources Directorate,Grants,F473,
http://opendatacommunities.org/id/london-borough-council/sutton,London Borough of Sutton,08/03/2021,1311300,446.95 , ARGOS LTD,PURCHASE OF WHITE GOODS FOR CRISIS LOAN AND GRANT SCHEME,Resources Directorate,Grants,F473,
http://opendatacommunities.org/id/london-borough-council/sutton,London Borough of Sutton,08/03/2021,1311300,476.95 , ARGOS LTD,PURCHASE OF WHITE GOODS FOR CRISIS LOAN AND GRANT SCHEME,Resources Directorate,Grants,F473,
http://opendatacommunities.org/id/london-borough-council/sutton,London Borough of Sutton,26/02/2021,1311300,369.00 , CURRYS ONLINE,PURCHASE OF WHITE GOODS THROUGH CRISIS LOAN AND GRANT SCHEME,Resources Directorate,Grants,F473,
http://opendatacommunities.org/id/london-borough-council/sutton,London Borough of Sutton,04/03/2021,1311300,"5,000.00 ", CS MORRISONS GIFT CARD,PURCHASE OF MORRISONS' VOUCHERS AS FOLLOWS; 50 VOUCHER X 200 = 10000,Resources Directorate,Grants,F473,
http://opendatacommunities.org/id/london-borough-council/sutton,London Borough of Sutton,04/03/2021,1311300,"5,000.00 ", CS MORRISONS GIFT CARD,PURCHASE OF MORRISONS' VOUCHERS AS FOLLOWS; 50 VOUCHER X 200 = 10000,Resources Directorate,Grants,F473,
http://opendatacommunities.org/id/london-borough-council/sutton,London Borough of Sutton,04/03/2021,1311300,"5,000.00 ", CS MORRISONS GIFT CARD,PURCHASE OF MORRISONS VOUCHERS FOR COVID WINTER PAYMENT SCHEME AWARDS,Resources Directorate,Grants,F473,
http://opendatacommunities.org/id/london-borough-council/sutton,London Borough of Sutton,04/03/2021,1311300,"5,000.00 ", CS MORRISONS GIFT CARD,PURCHASE OF MORRISONS VOUCHERS FOR COVID WINTER PAYMENT SCHEME AWARDS,Resources Directorate,Grants,F473,
http://opendatacommunities.org/id/london-borough-council/sutton,London Borough of Sutton,23/03/2021,1311300,3.00 , WWW.GOV.UK,PROBATE/WILL,Resources Directorate,Legal Services,G049,
http://opendatacommunities.org/id/london-borough-council/sutton,London Borough of Sutton,16/03/2021,1311300,1.50 , WWW.GOV.UK,PROBATE/WILL,Resources Directorate,Legal Services,G049,
http://opendatacommunities.org/id/london-borough-council/sutton,London Borough of Sutton,21/03/2021,1311300,227.99 , AMAZON.CO.UK MU2D60TY4,SPLIT - STAGING PRODUCT - NOT FOR RETAIL SALE (100%),Peoples Services Directorate,Personal Requisites,F106,
http://opendatacommunities.org/id/london-borough-council/sutton,London Borough of Sutton,20/03/2021,1311300,395.00 , AMAZON.CO.UK MU0W24JF4,SPLIT - IPHONE�SE 64GB BLACK (100%),Peoples Services Directorate,Personal Requisites,F106,
http://opendatacommunities.org/id/london-borough-council/sutton,London Borough of Sutton,02/03/2021,1311300,89.03 , STORAGEMART UK A-38A54,STORAGE REQUIRED FOR CLIENT,Peoples Services Directorate,Client Care/Assistance,H301,
http://opendatacommunities.org/id/london-borough-council/sutton,London Borough of Sutton,08/03/2021,1311300,160.00 , ACCESS SUTTON,160 F231 6404 9999 STORAGE.PDF,Peoples Services Directorate,Offsite Storage,F231,
http://opendatacommunities.org/id/london-borough-council/sutton,London Borough of Sutton,05/03/2021,1311300,200.00 , WWW.ADASS.ORG.UK,ADASS SPRING 2021 SEMINAR REGISTRATION,Peoples Services Directorate,Conferences - Fees,A525,
http://opendatacommunities.org/id/london-borough-council/sutton,London Borough of Sutton,23/03/2021,1311300,96.81 , FACEBK LHBRS2XAL2,SPLIT - KEEP SUTTON SAFE (54.75%),Health and Wellbeing Directorate,Advertising/Publicity (non Staff),F240,
http://opendatacommunities.org/id/london-borough-council/sutton,London Borough of Sutton,17/03/2021,1311300,3.75 , TRANSLATED.COM,VACCINE VIDEO TRANSLATION,Health and Wellbeing Directorate,Advertising/Publicity (non Staff),F240,
http://opendatacommunities.org/id/london-borough-council/sutton,London Borough of Sutton,16/03/2021,1311300,136.41 , TRANSLATED.COM,VACCINE VIDEO TRANSLATION,Health and Wellbeing Directorate,Advertising/Publicity (non Staff),F240,
